bitfinex/quotes_BTCUSD_20250316
["timestamp","ask_amount","ask_price","bid_price","bid_amount"]
[1742141425945,0.00040904,84496.0,84483.0,0.011836]
[1742141426181,0.00040904,84496.0,84471.0,0.0008]
[1742141426182,0.011835,84489.0,84471.0,0.0008]
[1742141426394,0.00040904,84496.0,84471.0,0.0008]
[1742141426395,0.011836,84485.0,84471.0,0.0008]
[1742141426602,0.02526705,84488.0,84471.0,0.0008]
[1742141426804,0.011836,84487.0,84471.0,0.0008]
[1742141427010,0.011837,84475.0,84471.0,0.0008]
[1742141427218,0.011837,84478.0,84471.0,0.0008]
[1742141427487,0.00078776,84474.0,84471.0,0.0008]
[1742141427695,0.00040904,84496.0,84472.0,0.11957503]
[1742141427904,0.00040904,84496.0,84473.0,0.3]
[1742141428112,0.00040904,84496.0,84475.0,0.3]
[1742141428319,0.00040904,84496.0,84482.0,0.41957503]
[1742141428523,0.00040904,84496.0,84482.0,0.11957503]
[1742141428743,0.00040904,84496.0,84492.0,0.3]
[1742141428945,0.00040904,84496.0,84494.0,0.3]
[1742141429073,0.00040904,84496.0,84495.0,0.41957503]
[1742141429492,0.035577,84575.0,84496.0,0.3]
[1742141429696,0.75108,84576.0,84507.0,0.11957503]
[1742141429882,0.00483636,84574.0,84513.0,0.11957503]
[1742141430090,0.75108,84576.0,84513.0,0.11957503]
[1742141430091,0.00485469,84575.0,84513.0,0.11957503]
[1742141430347,0.75108,84576.0,84513.0,0.11957503]
[1742141430546,0.75108,84576.0,84496.0,0.29996]
[1742141430547,0.00485469,84574.0,84517.0,0.11957503]
[1742141430751,0.75108,84576.0,84517.0,0.11957503]
[1742141430953,0.00485469,84573.0,84518.0,0.01744005]
[1742141431159,0.75108,84576.0,84519.0,0.11957503]
[1742141431361,0.00485469,84572.0,84519.0,0.11957503]
[1742141431569,0.75108,84576.0,84520.0,0.3]
[1742141431803,0.00485469,84571.0,84522.0,0.3]
[1742141432013,0.68216339,84620.0,84541.0,0.3]
[1742141432211,0.0788,84620.0,84551.0,0.11957503]
[1742141432427,0.05,84617.0,84548.0,0.3]
[1742141432602,0.3,84615.0,84548.0,0.3]
[1742141432757,0.04660134,84614.0,84548.0,0.3]
[1742141432967,0.57818452,84613.0,84533.0,0.01744005]
[1742141433160,0.60336339,84600.0,84533.0,0.01744005]
[1742141433365,0.05,84595.0,84533.0,0.01744005]
[1742141433589,0.3,84579.0,84533.0,0.01744005]
[1742141433808,1.09027341,84578.0,84549.0,0.02097843]
[1742141434007,0.17606352,84577.0,84549.0,0.02097843]
[1742141434212,0.3,84575.0,84549.0,0.02097843]
[1742141434413,0.04512352,84576.0,84534.0,0.0335655]
[1742141434612,0.00147853,84575.0,84543.0,0.01744005]
[1742141434811,0.60336339,84560.0,84543.0,0.01744005]
[1742141435013,0.04660231,84559.0,84534.0,0.00012439]
[1742141435253,0.04660231,84559.0,84504.0,0.06393929]
[1742141435254,0.3,84556.0,84504.0,0.06393929]
[1742141435462,0.3,84554.0,84504.0,0.06393929]
[1742141435664,2.22619855,84555.0,84505.0,0.11957503]
[1742141435665,0.04512352,84555.0,84505.0,0.11957503]
[1742141435866,0.00012276,84556.0,84506.0,0.3]
[1742141436036,0.00012276,84556.0,84508.0,0.3]
[1742141436234,0.00012276,84556.0,84504.0,0.06393929]
[1742141436419,0.00147872,84555.0,84504.0,0.06393929]
[1742141436637,0.00012276,84556.0,84506.0,0.3]
[1742141437028,0.00012276,84556.0,84508.0,0.3]
[1742141437463,0.00012276,84556.0,84506.0,0.0335655]
[1742141438223,0.00012276,84556.0,84508.0,0.3]
[1742141438423,0.00012276,84556.0,84506.0,0.0335655]
[1742141438766,0.00012276,84556.0,84508.0,0.3]
[1742141438972,0.00012276,84556.0,84507.0,0.15314053]
[1742141438973,0.00012276,84556.0,84510.0,0.3]
[1742141439283,0.00012276,84556.0,84510.0,0.41957503]
[1742141439424,0.00012276,84556.0,84512.0,0.3]
[1742141439635,0.00012276,84556.0,84514.0,0.3]
[1742141439970,0.00012276,84556.0,84516.0,0.3]
[1742141440220,0.00012276,84556.0,84518.0,0.3]
[1742141440373,0.00012276,84556.0,84520.0,0.3]
[1742141440571,0.00012276,84556.0,84511.0,0.3]
[1742141440781,0.00012276,84556.0,84510.0,0.7512]
[1742141440959,0.00012276,84556.0,84511.0,0.41957503]
[1742141441154,0.00012276,84556.0,84512.0,0.0335655]
[1742141441738,0.00012276,84556.0,84513.0,0.11957503]
[1742141442571,0.00012276,84556.0,84521.0,0.3]
[1742141442772,0.00012276,84556.0,84514.0,0.0335655]
[1742141442773,0.00012276,84556.0,84526.0,0.3]
[1742141442983,0.00012276,84556.0,84514.0,0.0335655]
[1742141442984,0.00012276,84556.0,84528.0,0.3]
[1742141443195,0.00012276,84556.0,84529.0,0.11957503]
[1742141443372,0.00012276,84556.0,84530.0,0.3]
[1742141443603,0.00012276,84556.0,84532.0,0.3]
[1742141443807,0.00012276,84556.0,84514.0,0.0335655]
[1742141444233,0.00012276,84556.0,84530.0,0.0335655]
[1742141445063,0.00012276,84556.0,84531.0,0.11957503]
[1742141445487,0.00012276,84556.0,84533.0,0.3]
[1742141445696,0.00012276,84556.0,84535.0,0.3]
[1742141445909,0.00012276,84556.0,84534.0,0.11957503]
[1742141445910,0.00012276,84556.0,84547.0,0.3]
[1742141446118,0.0001703,84572.0,84555.0,0.11957503]
[1742141446337,0.0001703,84572.0,84564.0,0.3]
[1742141446824,0.0001703,84657.0,84570.0,0.05]
[1742141447031,0.0001703,84657.0,84550.0,0.60336339]
[1742141447032,0.0001703,84657.0,84613.0,0.3]
[1742141447234,0.0001703,84657.0,84613.0,0.41957503]
[1742141447438,0.0001703,84657.0,84565.0,0.035535]
[1742141447439,0.0806,84628.0,84565.0,0.035535]
[1742141447644,0.0806,84628.0,84497.0,0.61239507]
[1742141447645,0.00961721,84627.0,84490.0,0.7512]
[1742141447855,0.05,84622.0,84571.0,0.0335655]
[1742141448067,0.50394779,84610.0,84571.0,0.03474893]
[1742141448278,0.54059287,84609.0,84557.0,0.0335655]
[1742141448481,0.50394779,84590.0,84557.0,0.0335655]
[1742141448697,0.50394779,84570.0,84557.0,0.0335655]
[1742141448911,0.00147834,84569.0,84557.0,0.0335655]
[1742141449126,0.50394779,84570.0,84557.0,0.0335655]
[1742141449337,0.50394779,84580.0,84557.0,0.0335655]
[1742141449930,0.01853554,84575.0,84552.0,0.00118343]
[1742141450380,0.01853554,84575.0,84548.0,0.00118343]
[1742141450576,0.01853554,84575.0,84511.0,0.3]
[1742141450577,0.00147818,84574.0,84511.0,0.3]
[1742141450786,0.00147818,84574.0,84513.0,0.3]
[1742141450994,0.50394779,84580.0,84549.0,0.00118343]
[1742141451209,0.00147831,84579.0,84549.0,0.00118343]
[1742141451450,0.00147831,84579.0,84514.0,0.11957503]
[1742141451451,0.01853775,84559.0,84539.0,0.00118343]
[1742141451672,0.00147831,84579.0,84564.0,0.00034]
[1742141452300,0.01853837,84576.0,84564.0,0.00034]
[1742141452509,0.00147833,84575.0,84564.0,0.00034]
[1742141453174,0.01853837,84576.0,84564.0,0.00034]
[1742141453585,0.00147832,84575.0,84564.0,0.00034]
[1742141454059,0.01853837,84576.0,84564.0,0.00034]
[1742141454264,0.00147858,84574.0,84564.0,0.00034]
[1742141454672,0.04512352,84573.0,84527.0,0.00118343]
[1742141454878,0.0014787,84572.0,84516.0,1.5]
[1742141455085,0.34512352,84571.0,84516.0,1.5]
[1742141455290,0.3,84559.0,84509.0,0.10160175]
[1742141455511,0.04881657,84553.0,84509.0,0.10160175]
[1742141455718,0.3,84551.0,84509.0,0.10160175]
[1742141455928,0.3,84549.0,84509.0,0.10160175]
[1742141456141,0.04881657,84546.0,84509.0,0.10160175]
[1742141456341,0.3,84544.0,84509.0,0.10160175]
[1742141456593,0.3,84539.0,84509.0,0.10160175]
[1742141456809,0.3,84539.0,84509.0,0.10172451]
[1742141456810,0.0462,84536.0,84509.0,0.10172451]
[1742141457021,0.0462,84536.0,84479.0,0.0003402]
[1742141457022,0.3,84519.0,84479.0,0.0003402]
[1742141457224,0.01135759,84480.0,84479.0,0.0003402]
[1742141457431,0.94271511,84480.0,84479.0,0.0003402]
[1742141457638,0.80768111,84480.0,84479.0,0.0003402]
[1742141458092,0.8262398,84480.0,84479.0,0.0003402]
[1742141458298,0.8262398,84480.0,84414.0,0.7512]
[1742141458299,0.9877828,84480.0,84414.0,0.7512]
[1742141458511,0.9877828,84480.0,84411.0,0.0003406]
[1742141458512,0.01300368,84472.0,84411.0,0.0003406]
[1742141458717,0.60588338,84470.0,84411.0,0.0003406]
[1742141458924,0.01408991,84451.0,84424.0,0.00118343]
[1742141459159,0.01408991,84451.0,84411.0,0.0003406]
[1742141459369,0.60588338,84450.0,84411.0,0.0003406]
[1742141459577,0.01535184,84435.0,84411.0,0.0003406]
[1742141459774,0.01683276,84435.0,84411.0,0.0003406]
[1742141459976,0.04756768,84435.0,84411.0,0.0003406]
[1742141460128,0.01683235,84435.0,84411.0,0.0003406]
[1742141460458,0.0169552,84435.0,84411.0,0.0003406]
[1742141460839,0.01668444,84420.0,84411.0,0.0003406]
[1742141461041,0.01869234,84435.0,84411.0,0.0003406]
[1742141461245,0.01668444,84420.0,84411.0,0.0003406]
[1742141461423,0.01869234,84435.0,84411.0,0.0003406]
[1742141461424,0.01721064,84415.0,84411.0,0.0003406]
[1742141461624,0.01721064,84415.0,84367.0,0.89745952]
[1742141461625,0.01721064,84412.0,84367.0,0.57400036]
[1742141461858,0.01903552,84368.0,84321.0,0.00118343]
[1742141462128,0.02114253,84352.0,84303.0,0.0222113]
[1742141462326,0.3,84366.0,84303.0,0.02339473]
[1742141462327,0.02311044,84317.0,84303.0,0.02339473]
[1742141462503,0.02311044,84312.0,84303.0,0.0222113]
[1742141462835,0.02311044,84312.0,84307.0,0.00118343]
[1742141463045,0.02311044,84312.0,84309.0,0.00118343]
[1742141463215,0.02311044,84312.0,84303.0,0.0222113]
[1742141463429,0.04170011,84312.0,84303.0,0.0222113]
[1742141463776,0.04170011,84312.0,84251.0,0.022212]
[1742141463981,0.005,84308.0,84246.0,0.1246]
[1742141464181,0.4622073,84307.0,84218.0,0.00881126]
[1742141464410,0.220066,84306.0,84219.0,0.005]
[1742141464762,0.60588338,84280.0,84191.0,0.0058]
[1742141464934,0.3,84259.0,84191.0,0.0008]
[1742141465144,0.3,84240.0,84191.0,0.0008]
[1742141465317,0.005,84225.0,84211.0,0.44758211]
[1742141465536,0.005,84225.0,84140.0,0.02399385]
[1742141465537,0.005,84195.0,84084.0,0.0783]
[1742141465740,0.60588338,84221.0,84084.0,0.0783]
[1742141465741,0.00148568,84194.0,84116.0,0.02436968]
[1742141465916,0.00148568,84194.0,84115.0,0.01236908]
[1742141465917,0.00148568,84194.0,84193.0,0.00118343]
[1742141466115,0.0186169,84208.0,84148.0,0.0818]
[1742141466316,0.005,84272.0,84182.0,0.0498]
[1742141466516,0.00146812,84271.0,84251.0,0.00118343]
[1742141466725,0.00146812,84271.0,84236.0,0.3]
[1742141467037,0.00146812,84271.0,84191.0,0.05944099]
[1742141467038,0.00146812,84296.0,84238.0,0.3]
[1742141467243,0.00146812,84335.0,84251.0,0.41957503]
[1742141467450,0.078,84380.0,84309.0,0.00118343]
[1742141467451,0.005,84366.0,84309.0,0.00118343]
[1742141467809,0.005,84366.0,84270.0,0.60588338]
[1742141467810,0.00146812,84365.0,84326.0,0.00118343]
[1742141468027,0.0008,84349.0,84303.0,0.00118588]
[1742141468231,0.0008,84309.0,84286.0,0.7526]
[1742141468646,0.0008,84309.0,84301.0,0.00118343]
[1742141468821,0.0008,84309.0,84287.0,0.30118646]
[1742141468822,0.0008,84309.0,84308.0,0.00118343]
[1742141469051,0.0008,84309.0,84308.0,0.42194413]
[1742141469298,0.0008,84349.0,84316.0,0.00118343]
[1742141469501,0.0008,84349.0,84300.0,0.3]
[1742141469502,0.10501783,84346.0,84343.0,0.00118343]
[1742141469741,0.10501783,84346.0,84320.0,0.72545841]
[1742141469742,0.0008,84349.0,84323.0,0.3]
[1742141469952,0.0008,84349.0,84347.0,0.00118343]
[1742141470160,0.0008,84349.0,84305.0,0.00118343]
[1742141470369,0.0001226,84336.0,84265.0,0.0498]
[1742141470587,0.3,84347.0,84265.0,0.0498]
[1742141470588,0.21668812,84335.0,84265.0,0.0498]
[1742141470819,0.035654,84348.0,84308.0,0.00118343]
[1742141471017,0.60588338,84420.0,84345.0,0.00118343]
[1742141471018,0.00146812,84399.0,84345.0,0.00118343]
[1742141471231,0.00146812,84388.0,84329.0,0.00118343]
[1742141471441,0.00012267,84366.0,84343.0,0.00068343]
[1742141471592,0.00012267,84366.0,84344.0,0.00118527]
[1742141471864,0.00012267,84366.0,84310.0,0.00068343]
[1742141472085,0.00012267,84366.0,84311.0,0.00118573]
[1742141472289,0.00146812,84348.0,84288.0,0.00068343]
[1742141472493,0.00146812,84348.0,84254.0,0.15247]
[1742141472494,0.04931657,84343.0,84256.0,0.00068343]
[1742141472667,0.04931657,84331.0,84256.0,0.00118663]
[1742141473007,0.3,84329.0,84246.0,0.00118647]
[1742141473189,0.60588338,84360.0,84265.0,0.12076168]
[1742141473431,0.04431657,84338.0,84266.0,0.5]
[1742141473633,0.005,84360.0,84266.0,0.5]
[1742141473634,0.00012253,84309.0,84286.0,0.00568343]
[1742141473822,0.00012253,84309.0,84267.0,0.0011864]
[1742141473823,0.00012253,84309.0,84306.0,0.00568343]
[1742141473973,0.00012253,84309.0,84308.0,0.00568343]
[1742141474176,0.00012253,84309.0,84277.0,0.3]
[1742141474375,0.00012253,84309.0,84286.0,0.00568343]
[1742141474576,0.00012253,84309.0,84302.0,0.00568343]
[1742141474780,0.00012253,84309.0,84264.0,0.0066515]
[1742141475109,0.00012253,84309.0,84268.0,0.00568343]
[1742141475302,0.00012253,84309.0,84288.0,0.00568343]
[1742141475508,0.01859505,84299.0,84264.0,0.0066515]
[1742141475680,0.01859505,84299.0,84267.0,0.05185175]
[1742141475867,0.00146812,84298.0,84271.0,0.00568343]
[1742141476063,0.01859505,84299.0,84275.0,0.00568343]
[1742141476435,0.01859505,84299.0,84266.0,1.253]
[1742141476436,0.00012253,84309.0,84300.0,0.00568343]
[1742141476603,0.00012253,84309.0,84308.0,0.00568343]
[1742141476854,0.00012253,84309.0,84301.0,0.00118605]
[1742141476855,0.00012253,84309.0,84301.0,0.00118587]
[1742141477026,0.00012253,84309.0,84308.0,0.00568343]
[1742141477428,0.00012253,84309.0,84282.0,0.00118593]
[1742141477752,0.00012253,84309.0,84308.0,0.00568343]
[1742141477911,0.00012253,84309.0,84308.0,0.42525846]
[1742141478343,0.00012319,84348.0,84343.0,0.00568343]
[1742141478550,0.00012319,84348.0,84347.0,0.00568343]
[1742141478746,0.00012319,84348.0,84347.0,0.12644368]
[1742141478968,0.00012319,84348.0,84347.0,0.43908805]
[1742141479193,0.00012319,84348.0,84347.0,0.43790283]
[1742141479412,0.00146812,84422.0,84376.0,0.00568343]
[1742141479600,0.4156,84436.0,84348.0,0.3455]
[1742141479601,0.01857701,84387.0,84385.0,0.00568343]
[1742141479799,0.01857701,84387.0,84386.0,0.00568343]
[1742141479976,0.4156,84436.0,84380.0,0.00118489]
[1742141480195,0.01857209,84430.0,84403.0,0.3]
[1742141480396,0.01857209,84430.0,84428.0,0.00568343]
[1742141480606,0.00146812,84494.0,84428.0,0.00568343]
[1742141480607,0.04431657,84493.0,84428.0,0.00568343]
[1742141480816,0.01856398,84444.0,84425.0,0.75304]
[1742141481020,0.01856398,84444.0,84426.0,0.00568343]
[1742141481198,0.00146812,84443.0,84417.0,0.00568343]
[1742141481412,0.01856398,84444.0,84418.0,0.00118442]
[1742141481622,0.00146812,84443.0,84404.0,0.09667774]
[1742141481847,0.4156,84468.0,84405.0,0.12075947]
[1742141481848,0.00146812,84467.0,84405.0,0.12075947]
[1742141482027,0.00146812,84467.0,84404.0,0.0455]
[1742141482028,0.00146812,84466.0,84412.0,0.00568343]
[1742141482238,0.00146812,84466.0,84378.0,0.018564]
[1742141482239,0.01856553,84423.0,84380.0,0.50768236]
[1742141482451,0.01856553,84423.0,84394.0,0.00568343]
[1742141482650,0.00146812,84422.0,84397.0,0.00568343]
[1742141482992,0.01856553,84423.0,84398.0,0.00568343]
[1742141483193,0.01856553,84423.0,84420.0,0.00568343]
[1742141483486,0.75288,84475.0,84428.0,0.00568343]
[1742141483487,0.00146812,84467.0,84428.0,0.00568343]
[1742141483687,0.4156,84488.0,84428.0,0.00568343]
[1742141483688,0.01856471,84454.0,84428.0,0.12525846]
[1742141483887,0.01856471,84454.0,84428.0,0.43778431]
[1742141484088,0.00180932,84497.0,84461.0,0.00568343]
[1742141484484,0.00180932,84497.0,84429.0,0.3455]
[1742141484485,0.01855968,84474.0,84450.0,0.50768236]
[1742141484625,0.01855968,84474.0,84440.0,0.50768236]
[1742141484830,0.01855968,84474.0,84451.0,0.00568343]
[1742141485147,0.01855968,84474.0,84452.0,0.00118395]
[1742141485502,0.00146812,84473.0,84429.0,0.0455]
[1742141485712,0.01855858,84465.0,84429.0,0.04668418]
[1742141485983,0.01855858,84465.0,84430.0,0.00118405]
[1742141486185,0.0003412,84497.0,84448.0,0.00568343]
[1742141486387,0.00146812,84496.0,84440.0,0.50768236]
[1742141486562,0.00146812,84496.0,84451.0,0.00568343]
[1742141486742,0.00146812,84496.0,84441.0,0.05133658]
[1742141486947,0.00146812,84496.0,84431.0,0.3]
[1742141486948,8e-05,84495.0,84452.0,0.00568343]
[1742141487148,8e-05,84495.0,84453.0,0.12644226]
[1742141487351,8e-05,84495.0,84468.0,0.00568343]
[1742141487653,8e-05,84495.0,84468.0,0.12525846]
[1742141488075,8e-05,84495.0,84468.0,0.42525846]
[1742141488325,8e-05,84495.0,84468.0,0.46778431]
[1742141488528,0.0003412,84497.0,84489.0,0.00568343]
[1742141488529,2.12e-05,84497.0,84489.0,0.00568343]
[1742141488730,2.12e-05,84497.0,84469.0,0.3]
[1742141488731,2.12e-05,84497.0,84494.0,0.00568343]
[1742141488909,2.12e-05,84497.0,84496.0,0.00568343]
[1742141489266,2.12e-05,84497.0,84470.0,0.58558236]
[1742141489465,2.12e-05,84497.0,84453.0,0.00568343]
[1742141489712,2.12e-05,84497.0,84465.0,0.00568343]
[1742141489927,2.12e-05,84497.0,84478.0,0.00568343]
[1742141490123,0.4156,84515.0,84451.0,0.3]
[1742141490124,0.41323052,84515.0,84451.0,0.3]
[1742141490299,0.75224,84516.0,84453.0,0.3]
[1742141490300,0.41323052,84514.0,84453.0,0.3]
[1742141490503,0.41323052,84514.0,84440.0,0.50768236]
[1742141490504,0.3,84509.0,84454.0,0.0419575]
[1742141490788,0.3,84509.0,84440.0,0.50768236]
[1742141490789,0.50768236,84510.0,84460.0,0.00564343]
[1742141491015,0.41323052,84532.0,84462.0,0.3]
[1742141491220,0.41323052,84532.0,84464.0,0.00564343]
[1742141491221,0.249401,84531.0,84464.0,0.00564343]
[1742141491431,0.50768236,84520.0,84477.0,0.00564343]
[1742141491639,0.66127852,84519.0,84443.0,0.00118358]
[1742141491864,0.424699,84518.0,84445.0,0.3]
[1742141492162,0.41323052,84519.0,84477.0,0.00564343]
[1742141492358,0.41323052,84519.0,84478.0,0.00118346]
[1742141492510,0.50768236,84540.0,84495.0,0.011835]
[1742141492712,0.011832,84514.0,84502.0,0.011834]
[1742141492915,0.011831,84519.0,84508.0,0.00564343]
[1742141493101,0.236663,84509.0,84499.0,0.236686]
[1742141493302,0.013018,84555.0,84508.0,0.00564343]
[1742141493502,0.011835,84491.0,84460.0,0.50768236]
[1742141493705,0.248636,84461.0,84460.0,0.00564343]
[1742141493974,0.50768236,84520.0,84436.0,0.00564343]
[1742141493975,0.011842,84440.0,84436.0,0.00564343]
[1742141494125,0.011843,84438.0,84430.0,0.00118431]
[1742141494322,0.011843,84438.0,84432.0,0.00564343]
[1742141494323,0.011843,84435.0,84432.0,0.00564343]
[1742141494527,0.248705,84437.0,84434.0,0.00564343]
[1742141494728,0.248705,84437.0,84423.0,0.011845]
[1742141494729,0.011842,84441.0,84436.0,0.00564343]
[1742141494936,0.011842,84441.0,84424.0,0.23808026]
[1742141494937,0.011842,84445.0,84439.0,0.00564343]
[1742141495114,0.248692,84445.0,84439.0,0.011842]
[1742141495315,0.011839,84465.0,84456.0,0.236808]
[1742141495496,0.011839,84465.0,84450.0,0.011841]
[1742141495497,0.01856165,84462.0,84461.0,0.011839]
[1742141495701,0.03040065,84462.0,84457.0,0.0236808]
[1742141495955,0.01856165,84462.0,84461.0,0.00564343]
[1742141496363,0.011839,84465.0,84461.0,0.00564343]
[1742141496364,0.248542,84493.0,84484.0,0.011836]
[1742141496559,0.011835,84489.0,84481.0,0.011836]
[1742141496741,0.236667,84507.0,84494.0,0.011835]
[1742141496939,0.236667,84507.0,84468.0,0.355162]
[1742141496940,0.011833,84507.0,84498.0,0.011834]
[1742141497139,0.248534,84496.0,84490.0,0.011835]
[1742141497382,0.011834,84501.0,84495.0,0.011835]
[1742141497675,0.50768236,84530.0,84490.0,0.0497113]
[1742141497676,0.011833,84509.0,84502.0,0.011834]
[1742141497877,0.011833,84509.0,84447.0,0.05]
[1742141497878,0.248525,84498.0,84497.0,0.00564343]
[1742141498061,0.011834,84500.0,84497.0,0.00564343]
[1742141498261,0.011834,84498.0,84497.0,0.00564343]
[1742141498692,0.248519,84501.0,84497.0,0.00564343]
[1742141498892,0.354992,84509.0,84491.0,0.00564343]
[1742141499069,0.011832,84511.0,84505.0,0.011833]
[1742141499273,0.01183,84526.0,84520.0,0.00564343]
[1742141499471,0.01854873,84521.0,84520.0,0.24227343]
[1742141499694,0.011829,84534.0,84527.0,0.01183]
[1742141499905,0.011829,84532.0,84526.0,0.236611]
[1742141500154,0.23658,84538.0,84521.0,0.01747443]
[1742141500155,0.236624,84523.0,84521.0,0.00564343]
[1742141500279,0.011831,84521.0,84520.0,0.00564343]
[1742141500484,0.011829,84532.0,84522.0,0.00564343]
[1742141500686,0.011829,84532.0,84511.0,0.236654]
[1742141500687,0.011829,84534.0,84527.0,0.00564343]
[1742141500910,0.011829,84534.0,84528.0,0.01183]
[1742141501243,0.01183,84530.0,84527.0,0.00564343]
[1742141501446,0.29104,84536.0,84470.0,0.011838]
[1742141501730,0.29104,84536.0,84487.0,0.011836]
[1742141501731,0.011835,84494.0,84487.0,0.011836]
[1742141501939,0.75176,84532.0,84494.0,0.011835]
[1742141501940,0.011833,84506.0,84494.0,0.011835]
[1742141502071,0.011831,84520.0,84512.0,0.011832]
[1742141502283,1.182731,84552.0,84499.0,0.236687]
[1742141502284,0.011832,84511.0,84507.0,0.00118316]
[1742141502480,0.236652,84513.0,84506.0,0.248502]
[1742141502682,0.236617,84525.0,84505.0,0.011833]
[1742141502683,0.236632,84520.0,84511.0,0.011832]
[1742141503047,0.011834,84501.0,84494.0,0.011835]
[1742141503181,0.236686,84500.0,84495.0,0.0311835]
[1742141503403,0.236677,84504.0,84498.0,0.011834]
[1742141503628,0.011835,84489.0,84477.0,0.011837]
[1742141503831,0.011836,84487.0,84473.0,0.011838]
[1742141504088,0.248568,84484.0,84479.0,0.011837]
[1742141504319,0.011836,84483.0,84478.0,0.248585]
[1742141504426,0.011837,84474.0,84467.0,0.28836]
[1742141504635,0.01854972,84490.0,84448.0,0.75176]
[1742141504636,0.01184,84459.0,84448.0,0.75176]
[1742141504880,0.01184,84459.0,84442.0,1.5]
[1742141505077,0.01184,84459.0,84437.0,0.011843]
[1742141505337,0.03039865,84459.0,84429.0,0.248728]
[1742141505536,0.03039865,84459.0,84430.0,1.5]
[1742141505778,0.01855865,84459.0,84437.0,0.011843]
[1742141505979,0.011839,84461.0,84455.0,0.236811]
[1742141506185,0.011838,84468.0,84455.0,0.236811]
[1742141506186,0.523977,84497.0,84466.0,0.23678]
[1742141506385,0.236753,84476.0,84470.0,0.011838]
[1742141506558,0.236753,84476.0,84468.0,0.248614]
[1742141506559,0.236752,84477.0,84468.0,0.236776]
[1742141506762,0.248601,84473.0,84468.0,0.248612]
[1742141506961,0.236762,84473.0,84468.0,0.011838]
[1742141507207,0.236735,84483.0,84473.0,0.236762]
[1742141507403,0.236774,84469.0,84461.0,0.236795]
[1742141507604,0.011838,84473.0,84465.0,0.011839]
[1742141507807,0.011838,84469.0,84463.0,0.011839]
[1742141508210,0.01184,84459.0,84451.0,0.011841]
[1742141508410,0.01184,84459.0,84458.0,3e-07]
[1742141509143,0.236783,84466.0,84458.0,3e-07]
[1742141509298,0.01184,84459.0,84458.0,3e-07]
[1742141509496,0.248626,84464.0,84458.0,3e-07]
[1742141509705,0.01184,84459.0,84458.0,3e-07]
[1742141510316,0.23679,84463.0,84458.0,3e-07]
[1742141510317,0.00034834,84465.0,84464.0,0.011839]
[1742141510517,0.00034834,84465.0,84464.0,0.03800453]
[1742141510742,0.00034834,84465.0,84459.0,0.00118383]
[1742141510944,0.01184,84459.0,84458.0,3e-07]
[1742141511369,0.248664,84451.0,84450.0,3e-07]
[1742141512103,0.01184,84454.0,84450.0,3e-07]
[1742141512399,0.011841,84452.0,84450.0,3e-07]
[1742141512601,0.011838,84468.0,84458.0,0.2369733]
[1742141512744,0.248641,84459.0,84458.0,0.0001703]
[1742141513366,0.00034834,84465.0,84460.0,0.248637]
[1742141513568,0.00034834,84465.0,84461.0,0.011839]
[1742141513768,0.00034834,84465.0,84459.0,0.01184]
[1742141513968,0.00034834,84465.0,84460.0,0.236797]
[1742141514171,0.248614,84468.0,84461.0,0.011839]
[1742141514374,0.236795,84461.0,84458.0,0.0001703]
[1742141514571,0.01184,84459.0,84458.0,0.0001703]
[1742141514977,0.01855805,84465.0,84458.0,0.0001703]
[1742141514978,0.01855805,84465.0,84463.0,0.011839]
[1742141515175,0.01855805,84465.0,84458.0,0.0001703]
[1742141515176,0.236795,84461.0,84458.0,0.0001703]
[1742141515417,0.01855805,84465.0,84458.0,0.0001703]
[1742141515418,0.03039705,84465.0,84458.0,0.0001703]
[1742141515743,0.26718305,84465.0,84458.0,0.0001703]
[1742141515917,0.03039705,84465.0,84459.0,0.24864]
[1742141516168,0.00036823,84467.0,84461.0,0.248633]
[1742141516340,0.00036823,84467.0,84461.0,0.011839]
[1742141516563,0.00036823,84467.0,84461.0,0.248633]
[1742141516688,0.00036823,84467.0,84464.0,0.236787]
[1742141516886,0.00036823,84467.0,84466.0,0.24862]
[1742141517371,0.00036823,84467.0,84466.0,0.66819503]
[1742141518340,0.00036823,84467.0,84466.0,0.66590399]
[1742141518566,0.00036823,84467.0,84466.0,0.24632896]
[1742141519658,2.3e-07,84467.0,84466.0,0.36590399]
[1742141520242,0.011831,84520.0,84511.0,0.236655]
[1742141520466,0.011831,84520.0,84502.0,0.011834]
[1742141520467,0.236661,84509.0,84502.0,0.011834]
[1742141520668,0.236661,84509.0,84442.0,0.61479507]
[1742141520669,0.236674,84505.0,84497.0,0.011834]
[1742141520842,0.011833,84509.0,84497.0,0.248528]
[1742141521042,0.248529,84497.0,84490.0,0.011835]
[1742141521290,0.011834,84500.0,84494.0,0.236702]
[1742141521489,0.011835,84490.0,84482.0,0.248571]
[1742141521662,0.011835,84490.0,84474.0,0.2596]
[1742141521663,0.236703,84494.0,84483.0,0.0272245]
[1742141522018,0.236635,84518.0,84512.0,0.236652]
[1742141522146,0.236635,84518.0,84475.0,0.30118355]
[1742141522147,0.011834,84496.0,84488.0,0.011836]
[1742141522416,0.236683,84501.0,84495.0,0.2367]
[1742141522759,0.011837,84480.0,84475.0,0.011837]
[1742141522901,0.011837,84480.0,84475.0,0.0366964]
[1742141523102,0.011835,84490.0,84483.0,0.011836]
[1742141523298,0.236694,84497.0,84475.0,0.0248594]
[1742141523533,0.011835,84494.0,84488.0,0.011836]
[1742141523742,0.011835,84493.0,84482.0,0.011836]
[1742141523938,0.011835,84490.0,84484.0,0.011836]
[1742141524141,0.248552,84490.0,84484.0,0.011836]
[1742141524344,0.236722,84487.0,84470.0,0.011838]
[1742141524546,0.0003406,84519.0,84433.0,0.0751]
[1742141524547,0.011839,84465.0,84457.0,0.01184]
[1742141524718,0.236776,84468.0,84462.0,0.248629]
[1742141524917,0.01855416,84489.0,84472.0,0.011838]
[1742141525127,0.236725,84486.0,84480.0,0.011837]
[1742141525362,0.011834,84498.0,84489.0,0.011835]
[1742141525564,0.011834,84496.0,84489.0,0.236714]
[1742141525768,0.236732,84484.0,84477.0,0.011837]
[1742141525942,0.236702,84495.0,84482.0,0.011836]
[1742141526167,0.011833,84504.0,84496.0,0.011834]
[1742141526343,0.66991052,84517.0,84457.0,0.473611]
[1742141526344,0.236726,84486.0,84457.0,0.473611]
[1742141526545,0.011834,84501.0,84495.0,0.236698]
[1742141526827,0.236674,84505.0,84499.0,0.236689]
[1742141527036,0.011836,84484.0,84479.0,0.011837]